Cogmind - Beta 16.1 @@@ ROGUE MODE // 2026.01.31 @ 21:16:56 Player: Kaisercar Result: Destroyed by G-34 Mercenary with Small Laser Performance ------------- Evolutions (0) 0 Regions Visited (4) 800 Robots Destroyed (23) 115 Value Destroyed (555) 555 Prototype IDs (24) 480 Alien Tech Used (0) 0 Bonus (300) 300 TOTAL SCORE: 2250 Bonus ------- Aligned with FarCom 300 Cogmind --------- Core Integrity 0/250 Matter 366/400 Energy 100/100 System Corruption 1% Temperature Cool (7) Movement Treading (160) Location -9/Mines Parts ------- > --- POWER (1) -------- (None) > --- PROPULSION (2) --- Light Treads Light Treads > --- UTILITY (2) ------ Large Storage Unit Medium Matter Pod > --- WEAPON (2) ------- Assault Rifle Light Assault Rifle > --- INVENTORY (15) --- Reinforced Deuterium Engine Fission Core Light Fission Core Aluminum Leg Heat Sink High-capacity Storage Unit Improved Terrain Scanner 0b10 Alert Chip Hacking Suite Hacking Suite Tractor Beam Assault Rifle Light Cannon Light Cannon Light Cannon Peak State ------------ > --- POWER ------------ Ion Engine > --- PROPULSION ------- Light Treads Light Treads > --- UTILITY ---------- Large Storage Unit Seismic Detector > --- WEAPON ----------- Assault Rifle Light Cannon > --- INVENTORY -------- Ion Engine Light Treads Aluminum Leg Heat Sink Small Storage Unit Medium Storage Unit Large Battery Improved Terrain Scanner Hacking Suite Hacking Suite Assault Rifle Light Assault Rifle Light Cannon Light Cannon [Rating: 9] Favorites ----------- Power Ion Engine Engine Ion Engine Propulsion Light Treads Treads Light Treads Utility Large Storage Unit Device Seismic Detector Storage Large Storage Unit Weapon Assault Rifle Ballistic Gun Assault Rifle Ballistic Cannon Light Cannon Build | -11 -10 -10 -10 -9 ------- Run | Yrd Mat Min Exi Min Slots Evolved . | . . . . . Power . | . . . . . Propulsion . | . . . . . Utility . | . . . . . Weapon . | . . . . . Parts Attached 17 | 7 5 3 2 . Power 3 | 1 2 . . . Engine 3 | 1 2 . . . Core . | . . . . . Reactor . | . . . . . Propulsion 3 | 2 . 1 . . Treads 3 | 2 . 1 . . Leg . | . . . . . Wheel . | . . . . . Hover . | . . . . . Flight . | . . . . . Utility 7 | 2 2 1 2 . Device 1 | 1 . . . . Storage 6 | 1 2 1 2 . Processor . | . . . . . Hackware . | . . . . . Protection . | . . . . . Artifact . | . . . . . Weapon 4 | 2 1 1 . . Energy Gun . | . . . . . Energy Cannon . | . . . . . Ballistic Gun 2 | 2 . . . . Ballistic Cannon 2 | . 1 1 . . Launcher . | . . . . . Special Weapon . | . . . . . Impact Weapon . | . . . . . Slashing Weapon . | . . . . . Piercing Weapon . | . . . . . Special Melee Weapon . | . . . . . Unidentified Prototypes . | . . . . . Parts Lost 5 | . 2 3 . . Power 3 | . 2 1 . . Propulsion 1 | . . 1 . . Utility 1 | . . 1 . . Weapon . | . . . . . Highest Loss Streak 3 | . 1 3 . . To Critical Strikes . | . . . . . Average Backups 10 | 2 7 12 14 15 Power 1 | . . . 2 3 Propulsion 1 | . 1 1 1 1 Utility 4 | . 4 5 6 7 Weapon 3 | . 1 5 4 4 Tool/Special . | . . . . . Unused Backups 13 | . . . 1 12 Power 3 | . . . . 3 Propulsion 1 | . . . . 1 Utility 6 | . . . . 6 Weapon 3 | . . . 1 2 Tool/Special . | . . . . . Average Slot Usage (%) 92 | . 99 88 85 85 Engine 7 | . 13 3 . . Treads 27 | . 28 27 28 28 Device 7 | . 14 2 . . Storage 20 | . 14 25 28 28 Ballistic Gun 24 | . 24 21 28 28 Ballistic Cannon 3 | . 3 6 . . Peak Build Rating 9 | 7 9 9 9 9 Average Rating 7 | 5 7 7 8 9 On Entrance 6 | 1 7 9 7 9 Avg Prop Armor Cover (%) . | . . . . . Naked Turns . | . . . . . Heaviest Build 46 | 12 31 31 46 . Greatest Support 40 | 40 40 40 40 . Greatest Overweight (x) 3 | 3 . 1 1 . Average Overweight (x) . | . . . . . Largest Inventory Capacity 20 | 8 15 15 20 15 Average Capacity 13 | 7 13 15 15 15 Most Carried 15 | 4 15 14 15 15 Average Carried 10 | 2 8 12 14 15 Final Capacity 15 | 8 15 15 15 15 Final Carried 15 | 4 14 13 15 15 Class Distribution -------------------- 100% | Mutant Dominant Class ---------------- Mutant | -10/Materials Mutant | -10/Mines Mutant | -10/Exiles Mutant | -9/Mines Resources | -11 -10 -10 -10 -9 ----------- Run | Yrd Mat Min Exi Min Matter Collected 770 | 298 348 104 20 . Remotely . | . . . . . Salvage Created 731 | 102 624 5 . . Parts 43 | 9 34 . . . Haulers Intercepted 1 | . 1 . . . Recyclers Shooed 1 | . 1 . . . Parts Field Recycled . | . . . . . Retrieved Matter . | . . . . . Parts Self-Destructed . | . . . . . Prevented . | . . . . . Parts Restored . | . . . . . Kills | -11 -10 -10 -10 -9 ------- Run | Yrd Mat Min Exi Min Combat Hostiles Destroyed 15 | . 13 2 . . Guns 10 | . 10 . . . Cannons 5 | . 3 2 . . Classes Destroyed 7 | 2 4 1 . . Tunneler 2 | 2 . . . . Hauler 1 | . 1 . . . Recycler 3 | 1 2 . . . Operator 2 | . 2 . . . Swarmer 3 | . 3 . . . Grunt 10 | . 10 . . . Demolisher 2 | . . 2 . . Best Kill Streak 3 | 2 3 2 . . Combat Bots Only 3 | . 3 2 . . Max Kills in Single Turn 2 | 1 2 1 . . Gunslinging . | . . . . . Exploded . | . . . . . Melee . | . . . . . Uniques/NPCs Destroyed . | . . . . . Combat | -11 -10 -10 -10 -9 -------- Run | Yrd Mat Min Exi Min Hostile Shots Fired 79 | . 65 11 . 3 Missed 21 | . 20 1 . . Hits 58 | . 45 10 . 3 Melee 1 | . . . . 1 Projectile 57 | . 45 10 . 2 AOE 10 | . . 10 . . Critical Strikes 2 | . 2 . . . Damage Taken 1014 | . 499 464 . 51 Core 256 | . 128 118 . 10 Absorbed by Shields . | . . . . . Core Remaining (%) 100 | 100 . . . . Volleys Fired 80 | 7 64 8 . 1 Largest 2 | 2 2 2 . 2 Hottest 60 | 40 50 60 . 40 Shots Fired 160 | 14 127 17 . 2 Gun 128 | 14 107 5 . 2 Cannon 32 | . 20 12 . . Launcher . | . . . . . Special . | . . . . . Kinetic 160 | 14 127 17 . 2 Thermal . | . . . . . Explosive . | . . . . . Electromagnetic . | . . . . . Robot Hit Streak 21 | 5 21 8 . 1 Robot Miss Streak 4 | 2 4 1 . 1 Penetration Max . | . . . . . Secondary Targets 1 | . 1 . . . Max Gunslinging Chain 1 | . 1 . . . Shots Hit Robots 101 | 10 77 13 . 1 Core Hits 41 | 4 31 6 . . Critical Kills 1 | . 1 . . . Critical Parts Destroyed 1 | . 1 . . . Critical Strikes 4 | . 4 . . . Destroy 2 | . 2 . . . Blast 2 | . 2 . . . Melee Attacks . | . . . . . Impact . | . . . . . Slashing . | . . . . . Piercing . | . . . . . Sneak Attacks . | . . . . . Combat Hostiles . | . . . . . Follow-up Attacks . | . . . . . Damage Inflicted 1224 | 104 938 175 . 7 Guns 883 | 104 728 44 . 7 Cannons 341 | . 210 131 . . Explosions . | . . . . . Melee . | . . . . . Ramming . | . . . . . Kinetic 1224 | 104 938 175 . 7 Thermal . | . . . . . Explosive . | . . . . . Electromagnetic . | . . . . . Impact . | . . . . . Slashing . | . . . . . Piercing . | . . . . . Highest Corruption 1 | . 1 1 1 1 Average Corruption 1 | . 1 1 1 1 Corruption Purged . | . . . . . Corruption Blocked . | . . . . . Effects 6 | . 5 1 . . Message Errors 2 | . 2 . . . Energy Discharges 1 | . 1 . . . Parts Fused 1 | . 1 . . . Misfires 1 | . . 1 . . Weapon Failures 1 | . 1 . . . Overload Shots . | . . . . . Overflow Damage . | . . . . . Projectiles . | . . . . . Explosions . | . . . . . Melee . | . . . . . Knockbacks 6 | . 2 4 . . Impact . | . . . . . Kinetic 6 | . 2 4 . . Secondary . | . . . . . Self-Inflicted Damage . | . . . . . Shots . | . . . . . Rammed . | . . . . . Targets Rammed . | . . . . . Kicked . | . . . . . Crushed . | . . . . . Highest Temperature 27 | . 27 . . 1 Average Temperature 7 | . 7 . . 1 Received Heat Transfer 258 | . 246 . . 12 Siege Activations . | . . . . . Martial Activations . | . . . . . Shielding Activations . | . . . . . Robots Disrupted . | . . . . . Combat Hostiles . | . . . . . Robots Corrupted . | . . . . . Combat Hostiles . | . . . . . Parts Fried . | . . . . . Impact Corruptions . | . . . . . Robots Melted . | . . . . . Combat Hostiles . | . . . . . Parts Melted . | . . . . . Heat Transferred . | . . . . . Parts Sabotaged . | . . . . . Parts Stolen . | . . . . . Parts Stripped . | . . . . . Power Chain Reactions . | . . . . . Alert | -11 -10 -10 -10 -9 ------- Run | Yrd Mat Min Exi Min Maximum Alert Level . | . . . . . Low Security (%) 100 | 100 100 100 . 100 Level 1 . | . . . . . Level 2 . | . . . . . Level 3 . | . . . . . Level 4 . | . . . . . Level 5 . | . . . . . High Security . | . . . . . Max Security . | . . . . . Peak Influence 110 | 5 110 31 . . Initial 31 | . . 31 . . Average 33 | 1 52 5 . . Influence Increases 467 | 15 402 50 . . Destroy 0b10 Robot/C 300 | . 260 40 . . Destroy 0b10 Robot/NC 40 | 15 25 . . . Destroy Leader 62 | . 52 10 . . Successful Hack 5 | . 5 . . . Lose Combat Pursuer 60 | . 60 . . . Influence Decreases 467 | 15 319 133 . . Entered New Map 52 | . . 52 . . Time Decay 365 | 15 299 51 . . Lost Part 50 | . 20 30 . . Squads Dispatched 5 | . 5 . . . Investigation 1 | . 1 . . . Extermination . | . . . . . Reinforcement 4 | . 4 . . . Assault . | . . . . . Garrison . | . . . . . Intercept . | . . . . . Searches Triggered . | . . . . . Construction Impeded . | . . . . . Haulers Reinforced . | . . . . . Active Scanning Responses . | . . . . . Cargo Convoy Interrupts . | . . . . . Stealth | -11 -10 -10 -10 -9 --------- Run | Yrd Mat Min Exi Min Distress Signals 2 | . 2 . . . Communications Jammed . | . . . . . Distress Signals . | . . . . . Times Spotted 31 | . 27 2 . 2 Peak Tracking Total 4 | . 4 2 . 2 Tactical Retreats 3 | . 3 . . . Traps | -11 -10 -10 -10 -9 ------- Run | Yrd Mat Min Exi Min Traps Triggered 2 | . 2 . . . Indirectly . | . . . . . Trap Hack Attempts . | . . . . . Triggered . | . . . . . Disarmed . | . . . . . Reprogrammed . | . . . . . Reused . | . . . . . Traps Extracted . | . . . . . Installed . | . . . . . Triggered . | . . . . . Machines | -11 -10 -10 -10 -9 ---------- Run | Yrd Mat Min Exi Min Machines Disabled . | . . . . . Max in Single Turn . | . . . . . Machines Repaired . | . . . . . Machines Dismantled . | . . . . . Machines Sabotaged . | . . . . . Overloaded Fab Kills . | . . . . . Hacking | -11 -10 -10 -10 -9 --------- Run | Yrd Mat Min Exi Min Machines Accessed 3 | . 2 . 1 . Terminals 2 | . 2 . . . Fabricators . | . . . . . Repair Stations . | . . . . . Recycling Units . | . . . . . Scanalyzers . | . . . . . Garrison Access . | . . . . . Total Hacks 6 | . 5 . 1 . Successful 5 | . 4 . 1 . Failed 1 | . 1 . . . Catastrophic . | . . . . . Database Lockouts . | . . . . . Manual 4 | . 3 . 1 . Terminals 5 | . 5 . . . Fabricators . | . . . . . Repair Stations . | . . . . . Recycling Units . | . . . . . Scanalyzers . | . . . . . Garrison Access . | . . . . . Terminal Hacks 3 | . 2 . 1 . Patrol Status 1 | . 1 . . . Hauler Manifests 1 | . 1 . . . Proto ID Catalog 1 | . . . 1 . Fabricator Hacks . | . . . . . Repair Station Hacks . | . . . . . Recycling Unit Hacks . | . . . . . Scanalyzer . | . . . . . Garrison Access Hacks . | . . . . . Unauthorized Hacks 2 | . 2 . . . Terminals 2 | . 2 . . . Botnet 2 | . 2 . . . Fabricators . | . . . . . Repair Stations . | . . . . . Recycling Units . | . . . . . Scanalyzers . | . . . . . Garrison Access . | . . . . . Data Cores Recovered . | . . . . . Used . | . . . . . Hacking Detections 2 | . 2 . . . Full Trace Events . | . . . . . Feedback Events . | . . . . . Feedback Blocked . | . . . . . Robot Schematics Acquired . | . . . . . Robots Built . | . . . . . Authchips . | . . . . . Time . | . . . . . Total Robot Build Rating . | . . . . . Part Schematics Acquired . | . . . . . Parts Built . | . . . . . Authchips . | . . . . . Time . | . . . . . Total Part Build Rating . | . . . . . Part Studies Acquired . | . . . . . Parts Repaired . | . . . . . Time . | . . . . . Parts Recycled . | . . . . . Recycled Matter . | . . . . . Retrieved Matter . | . . . . . Retrieved Components . | . . . . . Parts Scanalyzed . | . . . . . Part Schematics Acquired . | . . . . . Parts Damaged . | . . . . . Bothacking | -11 -10 -10 -10 -9 ------------ Run | Yrd Mat Min Exi Min Used RIF Installer . | . . . . . Robots Hacked . | . . . . . Non-combat . | . . . . . Combat . | . . . . . Robot Hacks Applied . | . . . . . Relay Couplers Released . | . . . . . Fabnet Peak Effective % . | . . . . . Robots Rewired . | . . . . . Allies Hacked . | . . . . . Hacks Repelled . | . . . . . Allies | -11 -10 -10 -10 -9 -------- Run | Yrd Mat Min Exi Min Total Allies . | . . . . . Largest Group . | . . . . . Highest-Rated Group . | . . . . . Highest-Rated Ally . | . . . . . Total Orders . | . . . . . Ally Attacks . | . . . . . Total Damage . | . . . . . Kills . | . . . . . Allies Corrupted . | . . . . . Allies Melted . | . . . . . Intel | -11 -10 -10 -10 -9 ------- Run | Yrd Mat Min Exi Min Active Infowar (turns) 837 | 22 756 59 . . Seismic 837 | 22 756 59 . . Robot Analysis Total . | . . . . . Derelict Logs Recovered 2 | . . 2 . . Drone Launches . | . . . . . Drone Recoveries . | . . . . . Exploration | -11 -10 -10 -10 -9 ------------- Run | Yrd Mat Min Exi Min Turns Passed 1666 | 118 756 378 412 2 Spaces Moved 840 | 53 326 211 250 . Core 13 | 13 . . . . Treads 827 | 40 326 211 250 . Legs . | . . . . . Wheels . | . . . . . Hover . | . . . . . Flight . | . . . . . Fastest Speed 50 | 50 160 160 160 . Average Speed 160 | 154 160 160 161 . Slowest Speed 240 | 200 160 240 240 . Overloaded Moves . | . . . . . Propulsion Burnouts . | . . . . . Robots Hopped . | . . . . . Potential Cave-ins . | . . . . . Cave-ins Triggered . | . . . . . Exploration Rate (%) 30 | 4 38 47 60 4 Regions Visited 4 Branch Regions 3 Pre-discovered Areas . | . . . . . Known Exits Taken . | . . . . . Unknown Exits Taken 4 | 1 1 1 1 . Scrap Searched 1 | . . 1 . . Spaces Dug . | . . . . . Terrain Destroyed . | . . . . . Melee . | . . . . . Projectile . | . . . . . AOE . | . . . . . Terrain Rammed . | . . . . . Walls Destroyed . | . . . . . Machines Disabled . | . . . . . Actions | -11 -10 -10 -10 -9 --------- Run | Yrd Mat Min Exi Min Total 1008 | 74 440 233 260 1 Wait 45 | 2 36 7 . . Move 836 | 52 325 210 249 . Hop . | . . . . . Pick Up 21 | 5 10 2 4 . Fast Attach 7 | 6 . . 1 . Attach 5 | 1 2 2 . . Detach . | . . . . . Swap 8 | . 3 3 2 . Drop 6 | 1 . 1 4 . Fire 80 | 7 64 8 . 1 Melee . | . . . . . Ram . | . . . . . Kick . | . . . . . Crush . | . . . . . Escape Stasis . | . . . . . Rewire . | . . . . . Trap . | . . . . . Miscellaneous . | . . . . . Route ------- -11/Scrapyard -10/Materials -10/Mines (discovered 2 exits: [*Mat] / *Exi) -10/Exiles -9/Mines History --------- Turn | Location | Event 18 | -11/Scrapyard | Discovered new exit (range 16) 119 | -11/Scrapyard | Entered Materials 310 | -10/Materials | Build established: Mutant 662 | -10/Materials | Discovered new exit (range 16) 800 | -10/Materials | Core integrity fell below 50% 875 | -10/Materials | Entered Mines 880 | -10/Mines | Met a Derelict bent on vengeance 890 | -10/Mines | Assembled infested the area 946 | -10/Mines | Core integrity fell below 20% 981 | -10/Mines | Lost 3 parts (1p1n1u) 995 | -10/Mines | Learned Materials trap positions 1012 | -10/Mines | Discovered new exit (range 5) 1181 | -10/Mines | Learned Materials terminal intel 1246 | -10/Mines | Discovered new exit (range 5) 1253 | -10/Mines | Entered Exiles 1300 | -10/Exiles | Met 8R-AWN 1327 | -10/Exiles | Met EX-HEX 1374 | -10/Exiles | Met EX-BIN 1396 | -10/Exiles | Aligned with FarCom system 1398 | -10/Exiles | Given EX-Vault access code 1438 | -10/Exiles | Opened EX-Vault 1450 | -10/Exiles | Found 0b10 Alert Chip 1486 | -10/Exiles | Warned to stay clear of 0b10 Research branches 1535 | -10/Exiles | Met EX-DEC 1649 | -10/Exiles | Discovered new exit (range 10) 1665 | -10/Exiles | Left Exiles lab with 0b10 Alert Chip 1665 | -10/Exiles | Entered Mines 1667 | -9/Mines | Destroyed by G-34 Mercenary with Small Laser Last Messages --------------- distributed network. EX-BIN: And don't even think about spreading that code around. We're gonna change it right after you leave. Most certainly not to something like 1234 which I did last time as a little joke and some thief managed to sneak in here and steal a few of HEX's prototypes. EX-DEC: Ah I see we have a visitor. One wrong move in here and I'll invert your atomic chain! 01537_ EX-DEC: "Oops, I hope HEX didn't hear that..." 01590_ Dropped Med. Storage Unit. 01604_ Extracted 20 matter. 01605_ Dropped Lrg. Battery. 01606_ Acquired Med. Matter Pod. 01649_ EXIT=FOUND LOCATION=UNKNOWN GOAL=ESCAPE 01665_ Receiving FarCom transmissions... Map ----- +----------------------------------------------------+ | | | | | | | | | | | | | | | | | | | | | | | | | | | | | | | | | | | | | | | | | ??????????????????????????????????????????????? | | ??????????????????????????????????????????????? | | ??????????????????????###########?????????????? | | ??????????????????????# #?????????????? | | ?????????????????###### g""" #?????????????? | | ?????????????# @l """ #?????????????? | | ?????????????# """ #?????????????? | | ?????????????# ######## #?????????????? | | ??????????????????????###### ###?????????????? | | ???????????????????????????? #???????????????? | | ????????????????????????????? #???????????????? | | ??????????????????????????????#???????????????? | | ??????????????????????????????????????????????? | | ??????????????????????????????????????????????? | | ??????????????????????????????????????????????? | | ??????????????????????????????????????????????? | | ??????????????????????????????????????????????? | | ??????????????????????????????????????????????? | | ??????????????????????????????????????????????? | | ??????????????????????????????????????????????? | | ??????????????????????????????????????????????? | | ??????????????????????????????????????????????? | | ??????????????????????????????????????????????? | | ??????????????????????????????????????????????? | | ??????????????????????????????????????????????? | | ??????????????????????????????????????????????? | | ??????????????????????????????????????????????? | | ??????????????????????????????????????????????? | | ??????????????????????????????????????????????? | | ??????????????????????????????????????????????? | +----------------------------------------------------+ Best States ------------- Heat Dissipation 25 Energy Generation 10 Energy Capacity 450 Matter Stores 370 Matter Capacity 400 Sight Range 16 Terrain Scan Density 10 Evasion (%) 40 Recoil Reduction 2 Item Schematics ----------------- None Robot Schematics ------------------ None Fabricated ------------ Nothing Repaired ---------- Nothing Studied --------- None Alien Tech Used ----------------- None Achievements -------------- None Challenges ------------ None Game ------ Seed CombatMultitargetingGun Manual? 0 Play Time 00:12:18 Cumulative 57.0 hours Start 2026.01.31 @ 21:04:25 End 2026.01.31 @ 21:16:56 Sessions 1 Manual Loads 0 Difficulty Rogue Special Mode None Game No. 106 Rogue 31 Adventurer 75 Explorer 0 Win Type - Total 1 Types 1/0/0/0/0/0/0/0/0/0 Lore% 32 Gallery% 39 Achievement% 24 Wizard Run 0 Options --------- Layout 1 ASCII 0 Keyboard 0 Movement Numpad Keybinds 0 Fullscreen 2 Font 24/Smallcaps Map View 50x35 Zoom Use 0% Tactical HUD 1 Map Filters NONE Filters NONE Steam 1 RUN: 288b66cf-3ab6-4820-a3bf-d253717a2190